Workbook

Sheet Guide
G1: GUIDE | H1: INKOMST
B2: PERSONLIGT KASSAFLÖDE
B3: Den här arbetsboken innehåller kalkylblad för årligt, månatligt och dagligt kassaflöde. Välj den typ av kassaflöde som fungerar bäst för dig, eller använd alla för en insikt i ditt personliga kassaflöde.
B5: Årligt kassaflöde | D5: Månatligt kassaflöde | F5: Dagligt kassaflöde
B6: Ange ett årligt kassaflödesbelopp för olika områden. Du kan se den månatliga fördelningen, jämföra de olika områdena och, viktigast av allt, se vad slutresultatet är i siffror både per år och månad. | D6: Ange det månatliga kassaflödet för varje månad eller uppskatta de återstående månaderna om du vill se det beräknade kassaflödet för året för varje månad. | F6: Ange det uppskattade kassaflödesbeloppet för varje dag och granska de uppskattade månatliga och årliga totalsummorna. Få med hjälp av det här en insikt i hur dina dagliga utgifter ser ut under en månad eller ett år.

Sheet Årligt kassaflöde
B1: PERSONLIGT KASSAFLÖDE | G1: GUIDE | H1: ÅRLIGT KASSAFLÖDE | J1: MÅNATLIGT KASSAFLÖDE
B2: Kassaflödessumma hittills: | D2: =ÅrligtKassaflödeHittills -> 39,750.00 kr | G2: Det här är en årlig kalkyl. Använd det här kalkylbladet om du vill visa årliga belopp med uppskattade månatliga värden. Använd andra kalkylblad för att lägga till dagliga poster.
B3: INKOMSTÖVERSIKT | F3: UTGIFTSÖVERSIKT | J3: ÖVERSIKT ÖVER ÖVRIGT | N3: ÖVERSIKT ÖVER SPARANDE
B4: Årlig totalsumma: | C4: =Inkomst!C10 -> 125,000.00 kr | F4: Årlig totalsumma: | G4: =Utgifter[[#Totals],[Årlig ]] -> 49,000.00 kr | J4: Årlig totalsumma: | K4: =Övrigt[[#Totals],[Årlig ]] -> 13,250.00 kr | N4: Årlig totalsumma: | O4: =Sparande[[#Totals],[Årlig ]] -> 23,000.00 kr
B5: Cirkeldiagram som visar inkomster från olika källor finns i den här cellen. | F5: Cirkeldiagram som visar faktiska utgifter finns i den här cellen. | J5: Cirkeldiagram som visar övriga utgifter finns i den här cellen. | N5: Cirkeldiagram som visar sparande och investeringar finns i den här cellen.
B6: Månatlig totalsumma: | C6: =Inkomst!D10 -> 10,416.67 kr | F6: Månatlig totalsumma: | G6: =Utgifter[[#Totals],[Månatlig ]] -> 4,083.33 kr | J6: Månatlig totalsumma: | K6: =Övrigt[[#Totals],[Månatlig ]] -> 1,104.17 kr | N6: Månatlig totalsumma: | O6: =Sparande!D9 -> 1,916.67 kr

Sheet Månatligt kassaflöde
B1: PERSONLIGT KASSAFLÖDE | H1: GUIDE | I1: ÅRLIGT KASSAFLÖDE | J1: MÅNATLIGT KASSAFLÖDE | K1: DAGLIG ÖVERSIKT
B2: Månatlig kassaflödessumma: | D2: =MånatligtKassaflödeHittills -> 18,380.00 kr | F2: Obs! Uppskatta det månatliga beloppet/värdet för dagliga poster, och placera det värdet i rätt månadskolumn.
B3: Typ | C3: Beskrivning | D3: Jan | E3: Feb | F3: Mars | G3: April | H3: Maj | I3: Juni | J3: Juli | K3: Aug | L3: Sep | M3: Okt | N3: Nov | O3: Dec | P3: Summa
B4: Inkomst | C4: Lön | D4: 7,500.00 kr | E4: 7,500.00 kr | F4: 7,500.00 kr | G4: 7,500.00 kr | H4: 7,500.00 kr | I4: 7,500.00 kr | P4: =SUM(Månatlig[[#This Row],[Jan]:[Dec]]) -> 45,000.00 kr
B5: Inkomst | C5: Provisioner/bonus | D5: 400.00 kr | E5: 400.00 kr | F5: 500.00 kr | G5: 200.00 kr | H5: 0.00 kr | I5: 600.00 kr | P5: =SUM(Månatlig[[#This Row],[Jan]:[Dec]]) -> 2,100.00 kr
B6: Inkomst | C6: Övrigt 1 | D6: 2,500.00 kr | E6: 2,500.00 kr | F6: 2,500.00 kr | G6: 2,500.00 kr | H6: 2,500.00 kr | I6: 2,500.00 kr | P6: =SUM(Månatlig[[#This Row],[Jan]:[Dec]]) -> 15,000.00 kr
B7: Inkomst | C7: Övrigt 2 | D7: 0.00 kr | E7: 0.00 kr | F7: 0.00 kr | G7: 0.00 kr | H7: 0.00 kr | I7: 0.00 kr | P7: =SUM(Månatlig[[#This Row],[Jan]:[Dec]]) -> 0.00 kr
B8: Inkomst | C8: Övrigt 3 | D8: 0.00 kr | E8: 0.00 kr | F8: 0.00 kr | G8: 0.00 kr | H8: 0.00 kr | I8: 0.00 kr | P8: =SUM(Månatlig[[#This Row],[Jan]:[Dec]]) -> 0.00 kr
B9: Inkomst | C9: Övrigt 4 | D9: 0.00 kr | E9: 0.00 kr | F9: 0.00 kr | G9: 0.00 kr | H9: 0.00 kr | I9: 0.00 kr | P9: =SUM(Månatlig[[#This Row],[Jan]:[Dec]]) -> 0.00 kr
B10: Utgifter | C10: Statlig inkomstskatt/egenavgifter/sjukförsäkring | D10: 1,250.00 kr | E10: 1,250.00 kr | F10: 1,250.00 kr | G10: 1,250.00 kr | H10: 1,250.00 kr | I10: 1,250.00 kr | P10: =SUM(Månatlig[[#This Row],[Jan]:[Dec]]) -> 7,500.00 kr
B11: Utgifter | C11: Kommunal inkomstskatt | D11: 208.33 kr | E11: 208.33 kr | F11: 208.33 kr | G11: 208.33 kr | H11: 208.33 kr | I11: 208.33 kr | P11: =SUM(Månatlig[[#This Row],[Jan]:[Dec]]) -> 1,250.00 kr
B12: Utgifter | C12: Fordonsskatt/avgifter | D12: 16.67 kr | E12: 16.67 kr | F12: 16.67 kr | G12: 16.67 kr | H12: 16.67 kr | I12: 16.67 kr | P12: =SUM(Månatlig[[#This Row],[Jan]:[Dec]]) -> 100.00 kr
B13: Utgifter | C13: Avbetalningar fordon | D13: 333.33 kr | E13: 333.33 kr | F13: 333.33 kr | G13: 333.33 kr | H13: 333.33 kr | I13: 333.33 kr | P13: =SUM(Månatlig[[#This Row],[Jan]:[Dec]]) -> 2,000.00 kr
B14: Utgifter | C14: Avbetalning bostad/hyra | D14: 1,250.00 kr | E14: 1,250.00 kr | F14: 1,250.00 kr | G14: 1,250.00 kr | H14: 1,250.00 kr | I14: 1,250.00 kr | P14: =SUM(Månatlig[[#This Row],[Jan]:[Dec]]) -> 7,500.00 kr
B15: Utgifter | C15: Försäkring | D15: 25.00 kr | E15: 25.00 kr | F15: 25.00 kr | G15: 25.00 kr | H15: 25.00 kr | I15: 25.00 kr | P15: =SUM(Månatlig[[#This Row],[Jan]:[Dec]]) -> 150.00 kr
B16: Utgifter | C16: Elektricitet | D16: 100.00 kr | E16: 100.00 kr | F16: 100.00 kr | G16: 100.00 kr | H16: 100.00 kr | I16: 100.00 kr | P16: =SUM(Månatlig[[#This Row],[Jan]:[Dec]]) -> 600.00 kr
B17: Utgifter | C17: Bensin | D17: 50.00 kr | E17: 50.00 kr | F17: 50.00 kr | G17: 50.00 kr | H17: 50.00 kr | I17: 50.00 kr | P17: =SUM(Månatlig[[#This Row],[Jan]:[Dec]]) -> 300.00 kr
B18: Utgifter | C18: Vatten | D18: 50.00 kr | E18: 50.00 kr | F18: 50.00 kr | G18: 50.00 kr | H18: 50.00 kr | I18: 50.00 kr | P18: =SUM(Månatlig[[#This Row],[Jan]:[Dec]]) -> 300.00 kr
B19: Utgifter | C19: Avlopp | D19: 25.00 kr | E19: 25.00 kr | F19: 25.00 kr | G19: 25.00 kr | H19: 25.00 kr | I19: 25.00 kr | P19: =SUM(Månatlig[[#This Row],[Jan]:[Dec]]) -> 150.00 kr
B20: Utgifter | C20: Sophantering | D20: 12.50 kr | E20: 12.50 kr | F20: 12.50 kr | G20: 12.50 kr | H20: 12.50 kr | I20: 12.50 kr | P20: =SUM(Månatlig[[#This Row],[Jan]:[Dec]]) -> 75.00 kr
B21: Utgifter | C21: Telefon | D21: 50.00 kr | E21: 50.00 kr | F21: 50.00 kr | G21: 50.00 kr | H21: 50.00 kr | I21: 50.00 kr | P21: =SUM(Månatlig[[#This Row],[Jan]:[Dec]]) -> 300.00 kr
B22: Utgifter | C22: Internet | D22: 50.00 kr | E22: 50.00 kr | F22: 50.00 kr | G22: 50.00 kr | H22: 50.00 kr | I22: 50.00 kr | P22: =SUM(Månatlig[[#This Row],[Jan]:[Dec]]) -> 300.00 kr
B23: Utgifter | C23: Personförsäkringar | D23: 125.00 kr | E23: 125.00 kr | F23: 125.00 kr | G23: 125.00 kr | H23: 125.00 kr | I23: 125.00 kr | P23: =SUM(Månatlig[[#This Row],[Jan]:[Dec]]) -> 750.00 kr
B24: Utgifter | C24: Mat | D24: 400.00 kr | E24: 500.00 kr | F24: 450.00 kr | G24: 400.00 kr | H24: 450.00 kr | I24: 425.00 kr | P24: =SUM(Månatlig[[#This Row],[Jan]:[Dec]]) -> 2,625.00 kr
B25: Utgifter | C25: Kläder | D25: 50.00 kr | E25: 75.00 kr | F25: 100.00 kr | G25: 75.00 kr | H25: 125.00 kr | I25: 75.00 kr | P25: =SUM(Månatlig[[#This Row],[Jan]:[Dec]]) -> 500.00 kr
B26: Utgifter | C26: Sjukvård/Tandvård/Läkemedel | D26: 50.00 kr | E26: 10.00 kr | F26: 25.00 kr | G26: 25.00 kr | H26: 20.00 kr | I26: 70.00 kr | P26: =SUM(Månatlig[[#This Row],[Jan]:[Dec]]) -> 200.00 kr
B27: Utgifter | C27: Buss | D27: 30.00 kr | E27: 30.00 kr | F27: 30.00 kr | G27: 20.00 kr | H27: 30.00 kr | I27: 30.00 kr | P27: =SUM(Månatlig[[#This Row],[Jan]:[Dec]]) -> 170.00 kr
B28: Utgifter | C28: Övrigt 2 | D28: 0.00 kr | E28: 0.00 kr | F28: 0.00 kr | G28: 0.00 kr | H28: 0.00 kr | I28: 0.00 kr | P28: =SUM(Månatlig[[#This Row],[Jan]:[Dec]]) -> 0.00 kr
B29: Utgifter | C29: Övrigt 3 | D29: 0.00 kr | E29: 0.00 kr | F29: 0.00 kr | G29: 0.00 kr | H29: 0.00 kr | I29: 0.00 kr | P29: =SUM(Månatlig[[#This Row],[Jan]:[Dec]]) -> 0.00 kr
B30: Utgifter | C30: Övrigt 4 | D30: 0.00 kr | E30: 0.00 kr | F30: 0.00 kr | G30: 0.00 kr | H30: 0.00 kr | I30: 0.00 kr | P30: =SUM(Månatlig[[#This Row],[Jan]:[Dec]]) -> 0.00 kr
B31: Övrigt | C31: Restaurang | D31: 50.00 kr | E31: 150.00 kr | F31: 100.00 kr | G31: 50.00 kr | H31: 150.00 kr | I31: 100.00 kr | P31: =SUM(Månatlig[[#This Row],[Jan]:[Dec]]) -> 600.00 kr
B32: Övrigt | C32: Gåvor | D32: 25.00 kr | E32: 75.00 kr | F32: 50.00 kr | G32: 25.00 kr | H32: 75.00 kr | I32: 50.00 kr | P32: =SUM(Månatlig[[#This Row],[Jan]:[Dec]]) -> 300.00 kr
B33: Övrigt | C33: Resor | D33: 0.00 kr | E33: 0.00 kr | F33: 1,000.00 kr | G33: 0.00 kr | H33: 0.00 kr | I33: 1,000.00 kr | P33: =SUM(Månatlig[[#This Row],[Jan]:[Dec]]) -> 2,000.00 kr
B34: Övrigt | C34: Nöjen | D34: 50.00 kr | E34: 150.00 kr | F34: 100.00 kr | G34: 50.00 kr | H34: 150.00 kr | I34: 100.00 kr | P34: =SUM(Månatlig[[#This Row],[Jan]:[Dec]]) -> 600.00 kr
B35: Övrigt | C35: Kroppsvård | D35: 15.00 kr | E35: 25.00 kr | F35: 35.00 kr | G35: 15.00 kr | H35: 25.00 kr | I35: 35.00 kr | P35: =SUM(Månatlig[[#This Row],[Jan]:[Dec]]) -> 150.00 kr
B36: Övrigt | C36: Shopping | D36: 100.00 kr | E36: 200.00 kr | F36: 150.00 kr | G36: 175.00 kr | H36: 150.00 kr | I36: 175.00 kr | P36: =SUM(Månatlig[[#This Row],[Jan]:[Dec]]) -> 950.00 kr
B37: Övrigt | C37: Välgörenhet | D37: 50.00 kr | E37: 50.00 kr | F37: 50.00 kr | G37: 50.00 kr | H37: 50.00 kr | I37: 50.00 kr | P37: =SUM(Månatlig[[#This Row],[Jan]:[Dec]]) -> 300.00 kr
B38: Övrigt | C38: Förening/medlemskap | D38: 25.00 kr | E38: 25.00 kr | F38: 25.00 kr | G38: 25.00 kr | H38: 25.00 kr | I38: 25.00 kr | P38: =SUM(Månatlig[[#This Row],[Jan]:[Dec]]) -> 150.00 kr
B39: Övrigt | C39: Renoveringar | D39: 400.00 kr | E39: 400.00 kr | F39: 400.00 kr | G39: 400.00 kr | H39: 400.00 kr | I39: 400.00 kr | P39: =SUM(Månatlig[[#This Row],[Jan]:[Dec]]) -> 2,400.00 kr
B40: Övrigt | C40: Övrigt 1 | D40: 0.00 kr | E40: 0.00 kr | F40: 0.00 kr | G40: 0.00 kr | H40: 0.00 kr | I40: 0.00 kr | P40: =SUM(Månatlig[[#This Row],[Jan]:[Dec]]) -> 0.00 kr
B41: Övrigt | C41: Övrigt 2 | D41: 0.00 kr | E41: 0.00 kr | F41: 0.00 kr | G41: 0.00 kr | H41: 0.00 kr | I41: 0.00 kr | P41: =SUM(Månatlig[[#This Row],[Jan]:[Dec]]) -> 0.00 kr
B42: Sparande | C42: Kassareserver | D42: 416.67 kr | E42: 416.67 kr | F42: 416.67 kr | G42: 416.67 kr | H42: 416.67 kr | I42: 416.67 kr | P42: =SUM(Månatlig[[#This Row],[Jan]:[Dec]]) -> 2,500.00 kr
B43: Sparande | C43: Pensionssparande | D43: 1,000.00 kr | E43: 1,000.00 kr | F43: 1,000.00 kr | G43: 1,000.00 kr | H43: 1,000.00 kr | I43: 1,000.00 kr | P43: =SUM(Månatlig[[#This Row],[Jan]:[Dec]]) -> 6,000.00 kr
B44: Sparande | C44: Sparkonto/investeringskonto | D44: 500.00 kr | E44: 500.00 kr | F44: 500.00 kr | G44: 500.00 kr | H44: 500.00 kr | I44: 500.00 kr | P44: =SUM(Månatlig[[#This Row],[Jan]:[Dec]]) -> 3,000.00 kr
B45: Sparande | C45: Övrigt 1 | D45: 0.00 kr | E45: 0.00 kr | F45: 0.00 kr | G45: 0.00 kr | H45: 0.00 kr | I45: 0.00 kr | P45: =SUM(Månatlig[[#This Row],[Jan]:[Dec]]) -> 0.00 kr
B46: Sparande | C46: Övrigt 2 | D46: 0.00 kr | E46: 0.00 kr | F46: 0.00 kr | G46: 0.00 kr | H46: 0.00 kr | I46: 0.00 kr | P46: =SUM(Månatlig[[#This Row],[Jan]:[Dec]]) -> 0.00 kr
B47: Summa | D47: =SUMIF(Månatlig[Typ],"Inkomst",Månatlig[Jan])-SUMIF(Månatlig[Typ],"<>Inkomst",Månatlig[Jan]) -> 3,692.50 kr | E47: =SUMIF(Månatlig[Typ],"Inkomst",Månatlig[Feb])-SUMIF(Månatlig[Typ],"<>Inkomst",Månatlig[Feb]) -> 3,247.50 kr | F47: =SUMIF(Månatlig[Typ],"Inkomst",Månatlig[Mars])-SUMIF(Månatlig[Typ],"<>Inkomst",Månatlig[Mars]) -> 2,522.50 kr | G47: =SUMIF(Månatlig[Typ],"Inkomst",Månatlig[April])-SUMIF(Månatlig[Typ],"<>Inkomst",Månatlig[April]) -> 3,427.50 kr | H47: =SUMIF(Månatlig[Typ],"Inkomst",Månatlig[Maj])-SUMIF(Månatlig[Typ],"<>Inkomst",Månatlig[Maj]) -> 2,887.50 kr | I47: =SUMIF(Månatlig[Typ],"Inkomst",Månatlig[Juni])-SUMIF(Månatlig[Typ],"<>Inkomst",Månatlig[Juni]) -> 2,602.50 kr | J47: =SUMIF(Månatlig[Typ],"Inkomst",Månatlig[Juli])-SUMIF(Månatlig[Typ],"<>Inkomst",Månatlig[Juli]) -> 0.00 kr | K47: =SUMIF(Månatlig[Typ],"Inkomst",Månatlig[Aug])-SUMIF(Månatlig[Typ],"<>Inkomst",Månatlig[Aug]) -> 0.00 kr | L47: =SUMIF(Månatlig[Typ],"Inkomst",Månatlig[Sep])-SUMIF(Månatlig[Typ],"<>Inkomst",Månatlig[Sep]) -> 0.00 kr | M47: =SUMIF(Månatlig[Typ],"Inkomst",Månatlig[Okt])-SUMIF(Månatlig[Typ],"<>Inkomst",Månatlig[Okt]) -> 0.00 kr | N47: =SUMIF(Månatlig[Typ],"Inkomst",Månatlig[Nov])-SUMIF(Månatlig[Typ],"<>Inkomst",Månatlig[Nov]) -> 0.00 kr | O47: =SUMIF(Månatlig[Typ],"Inkomst",Månatlig[Dec])-SUMIF(Månatlig[Typ],"<>Inkomst",Månatlig[Dec]) -> 0.00 kr | P47: =SUMIF(Månatlig[Typ],"Inkomst",Månatlig[Summa])-SUMIF(Månatlig[Typ],"<>Inkomst",Månatlig[Summa]) -> 18,380.00 kr

Sheet Daglig översikt
B1: PERSONLIGT KASSAFLÖDE | F1: GUIDE | G1: MÅNATLIGT KASSAFLÖDE | H1: DAGLIG ÖVERSIKT | I1: INKOMST
B2: Summa tillgängliga kontanter: | D2: =DagligtKassaflöde -> 577.84 kr | F2: Obs! Om du vill lägga till dagliga poster i tabellen uppskattar du deras månatliga belopp/värde och placerar värdet i rätt månadskolumn.
B3: DAGLIG ÖVERSIKT
B4: TOTALSUMMOR | C4: Daglig | D4: Månatlig | E4: Årlig
B5: Inkomst | C5: =SUMIF(Daglig[Typ],$B5,Daglig[Daglig]) -> 342.47 kr | D5: =SUMIF(Daglig[Typ],$B5,Daglig[Månatlig]) -> 10,416.80 kr | E5: =SUMIF(Daglig[Typ],$B5,Daglig[Årlig]) -> 125,001.55 kr
B6: Utgifter | C6: =SUMIF(Daglig[Typ],$B6,Daglig[Daglig]) -> 136.06 kr | D6: =SUMIF(Daglig[Typ],$B6,Daglig[Månatlig]) -> 4,138.49 kr | E6: =SUMIF(Daglig[Typ],$B6,Daglig[Årlig]) -> 49,661.90 kr
B7: Övrigt | C7: =SUMIF(Daglig[Typ],$B7,Daglig[Daglig]) -> 36.29 kr | D7: =SUMIF(Daglig[Typ],$B7,Daglig[Månatlig]) -> 1,103.82 kr | E7: =SUMIF(Daglig[Typ],$B7,Daglig[Årlig]) -> 13,245.85 kr
B8: Sparande | C8: =SUMIF(Daglig[Typ],$B8,Daglig[Daglig]) -> 63.02 kr | D8: =SUMIF(Daglig[Typ],$B8,Daglig[Månatlig]) -> 1,916.86 kr | E8: =SUMIF(Daglig[Typ],$B8,Daglig[Årlig]) -> 23,002.30 kr
B9: Typ | C9: Beskrivning | D9: Daglig | E9: Månatlig | F9: Årlig
B10: Inkomst | C10: Lön | D10: 246.58 kr | E10: =Daglig[[#This Row],[Årlig]]/12 -> 7,500.14 kr | F10: =Daglig[[#This Row],[Daglig]]*365 -> 90,001.70 kr
B11: Inkomst | C11: Provisioner/bonus | D11: 13.70 kr | E11: =Daglig[[#This Row],[Årlig]]/12 -> 416.71 kr | F11: =Daglig[[#This Row],[Daglig]]*365 -> 5,000.50 kr
B12: Inkomst | C12: Övrigt 1 | D12: 82.19 kr | E12: =Daglig[[#This Row],[Årlig]]/12 -> 2,499.95 kr | F12: =Daglig[[#This Row],[Daglig]]*365 -> 29,999.35 kr
B13: Inkomst | C13: Övrigt 2 | D13: 0.00 kr | E13: =Daglig[[#This Row],[Årlig]]/12 -> 0.00 kr | F13: =Daglig[[#This Row],[Daglig]]*365 -> 0.00 kr
B14: Inkomst | C14: Övrigt 3 | D14: 0.00 kr | E14: =Daglig[[#This Row],[Årlig]]/12 -> 0.00 kr | F14: =Daglig[[#This Row],[Daglig]]*365 -> 0.00 kr
B15: Inkomst | C15: Övrigt 4 | D15: 0.00 kr | E15: =Daglig[[#This Row],[Årlig]]/12 -> 0.00 kr | F15: =Daglig[[#This Row],[Daglig]]*365 -> 0.00 kr
B16: Utgifter | C16: Statlig inkomstskatt/egenavgifter/sjukförsäkring | D16: 41.10 kr | E16: =Daglig[[#This Row],[Årlig]]/12 -> 1,250.13 kr | F16: =Daglig[[#This Row],[Daglig]]*365 -> 15,001.50 kr
B17: Utgifter | C17: Kommunal inkomstskatt | D17: 6.85 kr | E17: =Daglig[[#This Row],[Årlig]]/12 -> 208.35 kr | F17: =Daglig[[#This Row],[Daglig]]*365 -> 2,500.25 kr
B18: Utgifter | C18: Fordonsskatt/avgifter | D18: 0.55 kr | E18: =Daglig[[#This Row],[Årlig]]/12 -> 16.73 kr | F18: =Daglig[[#This Row],[Daglig]]*365 -> 200.75 kr
B19: Utgifter | C19: Avbetalningar fordon | D19: 10.96 kr | E19: =Daglig[[#This Row],[Årlig]]/12 -> 333.37 kr | F19: =Daglig[[#This Row],[Daglig]]*365 -> 4,000.40 kr
B20: Utgifter | C20: Avbetalning bostad/hyra | D20: 41.10 kr | E20: =Daglig[[#This Row],[Årlig]]/12 -> 1,250.13 kr | F20: =Daglig[[#This Row],[Daglig]]*365 -> 15,001.50 kr
B21: Utgifter | C21: Försäkring | D21: 0.68 kr | E21: =Daglig[[#This Row],[Årlig]]/12 -> 20.68 kr | F21: =Daglig[[#This Row],[Daglig]]*365 -> 248.20 kr
B22: Utgifter | C22: Elektricitet | D22: 3.29 kr | E22: =Daglig[[#This Row],[Årlig]]/12 -> 100.07 kr | F22: =Daglig[[#This Row],[Daglig]]*365 -> 1,200.85 kr
B23: Utgifter | C23: Bensin | D23: 1.64 kr | E23: =Daglig[[#This Row],[Årlig]]/12 -> 49.88 kr | F23: =Daglig[[#This Row],[Daglig]]*365 -> 598.60 kr
B24: Utgifter | C24: Vatten | D24: 1.64 kr | E24: =Daglig[[#This Row],[Årlig]]/12 -> 49.88 kr | F24: =Daglig[[#This Row],[Daglig]]*365 -> 598.60 kr
B25: Utgifter | C25: Avlopp | D25: 0.82 kr | E25: =Daglig[[#This Row],[Årlig]]/12 -> 24.94 kr | F25: =Daglig[[#This Row],[Daglig]]*365 -> 299.30 kr
B26: Utgifter | C26: Sophantering | D26: 0.41 kr | E26: =Daglig[[#This Row],[Årlig]]/12 -> 12.47 kr | F26: =Daglig[[#This Row],[Daglig]]*365 -> 149.65 kr
B27: Utgifter | C27: Telefon | D27: 1.64 kr | E27: =Daglig[[#This Row],[Årlig]]/12 -> 49.88 kr | F27: =Daglig[[#This Row],[Daglig]]*365 -> 598.60 kr
B28: Utgifter | C28: Internet | D28: 1.64 kr | E28: =Daglig[[#This Row],[Årlig]]/12 -> 49.88 kr | F28: =Daglig[[#This Row],[Daglig]]*365 -> 598.60 kr
B29: Utgifter | C29: Personförsäkringar | D29: 4.11 kr | E29: =Daglig[[#This Row],[Årlig]]/12 -> 125.01 kr | F29: =Daglig[[#This Row],[Daglig]]*365 -> 1,500.15 kr
B30: Utgifter | C30: Mat | D30: 13.70 kr | E30: =Daglig[[#This Row],[Årlig]]/12 -> 416.71 kr | F30: =Daglig[[#This Row],[Daglig]]*365 -> 5,000.50 kr
B31: Utgifter | C31: Kläder | D31: 3.29 kr | E31: =Daglig[[#This Row],[Årlig]]/12 -> 100.07 kr | F31: =Daglig[[#This Row],[Daglig]]*365 -> 1,200.85 kr
B32: Utgifter | C32: Sjukvård/Tandvård/Läkemedel | D32: 1.64 kr | E32: =Daglig[[#This Row],[Årlig]]/12 -> 49.88 kr | F32: =Daglig[[#This Row],[Daglig]]*365 -> 598.60 kr
B33: Utgifter | C33: Buss | D33: 1.00 kr | E33: =Daglig[[#This Row],[Årlig]]/12 -> 30.42 kr | F33: =Daglig[[#This Row],[Daglig]]*365 -> 365.00 kr
B34: Utgifter | C34: Övrigt 2 | D34: 0.00 kr | E34: =Daglig[[#This Row],[Årlig]]/12 -> 0.00 kr | F34: =Daglig[[#This Row],[Daglig]]*365 -> 0.00 kr
B35: Utgifter | C35: Övrigt 3 | D35: 0.00 kr | E35: =Daglig[[#This Row],[Årlig]]/12 -> 0.00 kr | F35: =Daglig[[#This Row],[Daglig]]*365 -> 0.00 kr
B36: Utgifter | C36: Övrigt 4 | D36: 0.00 kr | E36: =Daglig[[#This Row],[Årlig]]/12 -> 0.00 kr | F36: =Daglig[[#This Row],[Daglig]]*365 -> 0.00 kr
B37: Övrigt | C37: Restaurang | D37: 3.29 kr | E37: =Daglig[[#This Row],[Årlig]]/12 -> 100.07 kr | F37: =Daglig[[#This Row],[Daglig]]*365 -> 1,200.85 kr
B38: Övrigt | C38: Gåvor | D38: 1.64 kr | E38: =Daglig[[#This Row],[Årlig]]/12 -> 49.88 kr | F38: =Daglig[[#This Row],[Daglig]]*365 -> 598.60 kr
B39: Övrigt | C39: Resor | D39: 6.16 kr | E39: =Daglig[[#This Row],[Årlig]]/12 -> 187.37 kr | F39: =Daglig[[#This Row],[Daglig]]*365 -> 2,248.40 kr
B40: Övrigt | C40: Nöjen | D40: 3.29 kr | E40: =Daglig[[#This Row],[Årlig]]/12 -> 100.07 kr | F40: =Daglig[[#This Row],[Daglig]]*365 -> 1,200.85 kr
B41: Övrigt | C41: Kroppsvård | D41: 0.82 kr | E41: =Daglig[[#This Row],[Årlig]]/12 -> 24.94 kr | F41: =Daglig[[#This Row],[Daglig]]*365 -> 299.30 kr
B42: Övrigt | C42: Shopping | D42: 5.48 kr | E42: =Daglig[[#This Row],[Årlig]]/12 -> 166.68 kr | F42: =Daglig[[#This Row],[Daglig]]*365 -> 2,000.20 kr
B43: Övrigt | C43: Välgörenhet | D43: 1.64 kr | E43: =Daglig[[#This Row],[Årlig]]/12 -> 49.88 kr | F43: =Daglig[[#This Row],[Daglig]]*365 -> 598.60 kr
B44: Övrigt | C44: Förening/medlemskap | D44: 0.82 kr | E44: =Daglig[[#This Row],[Årlig]]/12 -> 24.94 kr | F44: =Daglig[[#This Row],[Daglig]]*365 -> 299.30 kr
B45: Övrigt | C45: Renoveringar | D45: 13.15 kr | E45: =Daglig[[#This Row],[Årlig]]/12 -> 399.98 kr | F45: =Daglig[[#This Row],[Daglig]]*365 -> 4,799.75 kr
B46: Övrigt | C46: Övrigt 1 | D46: 0.00 kr | E46: =Daglig[[#This Row],[Årlig]]/12 -> 0.00 kr | F46: =Daglig[[#This Row],[Daglig]]*365 -> 0.00 kr
B47: Övrigt | C47: Övrigt 2 | D47: 0.00 kr | E47: =Daglig[[#This Row],[Årlig]]/12 -> 0.00 kr | F47: =Daglig[[#This Row],[Daglig]]*365 -> 0.00 kr
B48: Sparande | C48: Kassareserver | D48: 13.70 kr | E48: =Daglig[[#This Row],[Årlig]]/12 -> 416.71 kr | F48: =Daglig[[#This Row],[Daglig]]*365 -> 5,000.50 kr
B49: Sparande | C49: Pensionssparande | D49: 32.88 kr | E49: =Daglig[[#This Row],[Årlig]]/12 -> 1,000.10 kr | F49: =Daglig[[#This Row],[Daglig]]*365 -> 12,001.20 kr
B50: Sparande | C50: Sparkonto/investeringskonto | D50: 16.44 kr | E50: =Daglig[[#This Row],[Årlig]]/12 -> 500.05 kr | F50: =Daglig[[#This Row],[Daglig]]*365 -> 6,000.60 kr
B51: Sparande | C51: Övrigt 1 | D51: 0.00 kr | E51: =Daglig[[#This Row],[Årlig]]/12 -> 0.00 kr | F51: =Daglig[[#This Row],[Daglig]]*365 -> 0.00 kr
B52: Sparande | C52: Övrigt 2 | D52: 0.00 kr | E52: =Daglig[[#This Row],[Årlig]]/12 -> 0.00 kr | F52: =Daglig[[#This Row],[Daglig]]*365 -> 0.00 kr
B53: Summa | D53: =SUMIF(Daglig[Typ],"Inkomst",Daglig[Daglig])-SUMIF(Daglig[Typ],"<>Inkomst",Daglig[Daglig]) -> 107.10 kr | E53: =SUMIF(Daglig[Typ],"Inkomst",Daglig[Månatlig])-SUMIF(Daglig[Typ],"<>Inkomst",Daglig[Månatlig]) -> 3,257.63 kr | F53: =SUMIF(Daglig[Typ],"Inkomst",Daglig[Årlig])-SUMIF(Daglig[Typ],"<>Inkomst",Daglig[Årlig]) -> 39,091.50 kr

Sheet Inkomst
B1: PERSONLIGT KASSAFLÖDE | F1: GUIDE | G1: DAGLIG ÖVERSIKT | H1: INKOMST | I1: UTGIFTER
B2: Kassaflödessumma hittills: | D2: =ÅrligtKassaflödeHittills -> 39,750.00 kr | F2: Det här är en årlig kalkyl. Använd det här kalkylbladet om du vill visa årliga belopp med uppskattade månatliga värden Om du vill lägga till dagliga poster i tabellen uppskattar du deras årliga belopp/värde och placerar värdet i rätt årskolumn.
B3: Inkomst | C3: Årlig | D3: Månatlig
B4: Lön | C4: 90,000.00 kr | D4: =Inkomst[[#This Row],[Årlig ]]/12 -> 7,500.00 kr
B5: Provisioner/bonus | C5: 5,000.00 kr | D5: =Inkomst[[#This Row],[Årlig ]]/12 -> 416.67 kr
B6: Övrigt 1 | C6: 30,000.00 kr | D6: =Inkomst[[#This Row],[Årlig ]]/12 -> 2,500.00 kr
B7: Övrigt 2 | D7: =Inkomst[[#This Row],[Årlig ]]/12 -> 0.00 kr
B8: Övrigt 3 | D8: =Inkomst[[#This Row],[Årlig ]]/12 -> 0.00 kr
B9: Övrigt 4 | D9: =Inkomst[[#This Row],[Årlig ]]/12 -> 0.00 kr
B10: Summa | C10: =SUBTOTAL(109,Inkomst[[Årlig ]]) -> 125,000.00 kr | D10: =SUBTOTAL(109,Inkomst[[Månatlig ]]) -> 10,416.67 kr

Sheet Utgifter
B1: PERSONLIGT KASSAFLÖDE | F1: GUIDE | G1: INKOMST | H1: UTGIFTER | I1: ÖVRIGT
B2: Kassaflödessumma hittills: | D2: =ÅrligtKassaflödeHittills -> 39,750.00 kr | F2: Det här är en årlig kalkyl. Använd det här kalkylbladet om du vill visa årliga belopp med uppskattade månatliga värden Om du vill lägga till dagliga poster i tabellen uppskattar du deras årliga belopp/värde och placerar värdet i rätt årskolumn.
B3: Utgifter | C3: Årlig | D3: Månatlig
B4: Statlig inkomstskatt/egenavgifter/sjukförsäkring | C4: 15,000.00 kr | D4: =Utgifter[[#This Row],[Årlig ]]/12 -> 1,250.00 kr
B5: Kommunal inkomstskatt | C5: 2,500.00 kr | D5: =Utgifter[[#This Row],[Årlig ]]/12 -> 208.33 kr
B6: Fordonsskatt/avgifter | C6: 200.00 kr | D6: =Utgifter[[#This Row],[Årlig ]]/12 -> 16.67 kr
B7: Avbetalningar fordon | C7: 4,000.00 kr | D7: =Utgifter[[#This Row],[Årlig ]]/12 -> 333.33 kr
B8: Avbetalning bostad/hyra | C8: 15,000.00 kr | D8: =Utgifter[[#This Row],[Årlig ]]/12 -> 1,250.00 kr
B9: Försäkring | C9: 250.00 kr | D9: =Utgifter[[#This Row],[Årlig ]]/12 -> 20.83 kr
B10: Elektricitet | C10: 1,200.00 kr | D10: =Utgifter[[#This Row],[Årlig ]]/12 -> 100.00 kr
B11: Bensin | C11: 600.00 kr | D11: =Utgifter[[#This Row],[Årlig ]]/12 -> 50.00 kr
B12: Vatten/avlopp | C12: 600.00 kr | D12: =Utgifter[[#This Row],[Årlig ]]/12 -> 50.00 kr
B13: Sophantering | C13: 150.00 kr | D13: =Utgifter[[#This Row],[Årlig ]]/12 -> 12.50 kr
B14: Telefon | C14: 600.00 kr | D14: =Utgifter[[#This Row],[Årlig ]]/12 -> 50.00 kr
B15: Internet | C15: 600.00 kr | D15: =Utgifter[[#This Row],[Årlig ]]/12 -> 50.00 kr
B16: Personförsäkringar | C16: 1,500.00 kr | D16: =Utgifter[[#This Row],[Årlig ]]/12 -> 125.00 kr
B17: Mat | C17: 5,000.00 kr | D17: =Utgifter[[#This Row],[Årlig ]]/12 -> 416.67 kr
B18: Kläder | C18: 1,200.00 kr | D18: =Utgifter[[#This Row],[Årlig ]]/12 -> 100.00 kr
B19: Sjukvård/Tandvård/Läkemedel | C19: 600.00 kr | D19: =Utgifter[[#This Row],[Årlig ]]/12 -> 50.00 kr
B20: Övrigt 1 | D20: =Utgifter[[#This Row],[Årlig ]]/12 -> 0.00 kr
B21: Övrigt 2 | D21: =Utgifter[[#This Row],[Årlig ]]/12 -> 0.00 kr
B22: Summa | C22: =SUBTOTAL(109,Utgifter[[Årlig ]]) -> 49,000.00 kr | D22: =SUBTOTAL(109,Utgifter[[Månatlig ]]) -> 4,083.33 kr

Sheet Övrigt
B1: PERSONLIGT KASSAFLÖDE | F1: GUIDE | G1: UTGIFTER | H1: ÖVRIGT | I1: SPARANDE
B2: Kassaflödessumma hittills: | D2: =ÅrligtKassaflödeHittills -> 39,750.00 kr | F2: Det här är en årlig kalkyl. Använd det här kalkylbladet om du vill visa årliga belopp med uppskattade månatliga värden Om du vill lägga till dagliga poster i tabellen uppskattar du deras årliga belopp/värde och placerar värdet i rätt årskolumn.
B3: Övriga utgifter | C3: Årlig | D3: Månatlig
B4: Restaurang | C4: 1,200.00 kr | D4: =Övrigt[[#This Row],[Årlig ]]/12 -> 100.00 kr
B5: Gåvor | C5: 600.00 kr | D5: =Övrigt[[#This Row],[Årlig ]]/12 -> 50.00 kr
B6: Resor | C6: 2,250.00 kr | D6: =Övrigt[[#This Row],[Årlig ]]/12 -> 187.50 kr
B7: Nöjen | C7: 1,200.00 kr | D7: =Övrigt[[#This Row],[Årlig ]]/12 -> 100.00 kr
B8: Kroppsvård | C8: 300.00 kr | D8: =Övrigt[[#This Row],[Årlig ]]/12 -> 25.00 kr
B9: Shopping | C9: 2,000.00 kr | D9: =Övrigt[[#This Row],[Årlig ]]/12 -> 166.67 kr
B10: Välgörenhet | C10: 600.00 kr | D10: =Övrigt[[#This Row],[Årlig ]]/12 -> 50.00 kr
B11: Förening/medlemskap | C11: 300.00 kr | D11: =Övrigt[[#This Row],[Årlig ]]/12 -> 25.00 kr
B12: Renoveringar | C12: 4,800.00 kr | D12: =Övrigt[[#This Row],[Årlig ]]/12 -> 400.00 kr
B13: Övrigt 1 | D13: =Övrigt[[#This Row],[Årlig ]]/12 -> 0.00 kr
B14: Övrigt 2 | D14: =Övrigt[[#This Row],[Årlig ]]/12 -> 0.00 kr
B15: Summa | C15: =SUBTOTAL(109,Övrigt[[Årlig ]]) -> 13,250.00 kr | D15: =SUBTOTAL(109,Övrigt[[Månatlig ]]) -> 1,104.17 kr

Sheet Sparande
B1: PERSONLIGT KASSAFLÖDE | F1: GUIDE | G1: ÖVRIGT | H1: SPARANDE
B2: Kassaflödessumma hittills: | D2: =ÅrligtKassaflödeHittills -> 39,750.00 kr | F2: Det här är en årlig kalkyl. Använd det här kalkylbladet om du vill visa årliga belopp med uppskattade månatliga värden Om du vill lägga till dagliga poster i tabellen uppskattar du deras årliga belopp/värde och placerar värdet i rätt årskolumn.
B3: Sparande | C3: Årlig | D3: Månatlig
B4: Kassareserver | C4: 5,000.00 kr | D4: =Sparande[[#This Row],[Årlig ]]/12 -> 416.67 kr
B5: Pensionssparande | C5: 12,000.00 kr | D5: =Sparande[[#This Row],[Årlig ]]/12 -> 1,000.00 kr
B6: Sparande/investeringar | C6: 6,000.00 kr | D6: =Sparande[[#This Row],[Årlig ]]/12 -> 500.00 kr
B7: Övrigt 1 | D7: =Sparande[[#This Row],[Årlig ]]/12 -> 0.00 kr
B8: Övrigt 2 | D8: =Sparande[[#This Row],[Årlig ]]/12 -> 0.00 kr
B9: Summa | C9: =SUBTOTAL(109,Sparande[[Årlig ]]) -> 23,000.00 kr | D9: =SUBTOTAL(109,Sparande[[Månatlig ]]) -> 1,916.67 kr
